fUSD/lending_fUSD_20250103
["ID","MTS","AMOUNT","RATE_DAILY","PERIOD"]
[347531949,1735905052018,-934.77,9.26e-05,2]
[347531950,1735905052028,-500.0,9.26e-05,2]
[347531951,1735905052038,-1088.66,9.26e-05,2]
[347531952,1735905052049,-832.16,9.26e-05,2]
[347531953,1735905052059,-500.0,9.26e-05,2]
[347531954,1735905052069,-500.0,9.26e-05,2]
[347531955,1735905052079,-1061.28,9.26e-05,2]
[347531956,1735905052089,-656.83,9.26e-05,2]
[347531957,1735905052099,-1137.49,9.26e-05,2]
[347531958,1735905052108,-500.0,9.26e-05,2]
[347531959,1735905052118,-980.52,9.26e-05,2]
[347531960,1735905052128,-500.0,9.26e-05,2]
[347531961,1735905052138,-644.17,9.26e-05,2]
[347531962,1735905052148,-500.0,9.26e-05,2]
[347531963,1735905052159,-500.0,9.26e-05,2]
[347531964,1735905052169,-1870.3,9.26e-05,2]
[347531965,1735905052179,-500.0,9.26e-05,2]
[347531966,1735905052188,-775.87,9.26e-05,2]
[347531967,1735905052198,-523.35398907,9.26e-05,2]
[347531968,1735905052207,-840.61,9.26e-05,2]
[347531969,1735905052217,-500.0,9.26e-05,2]
[347531970,1735905052227,-1333.63,9.26e-05,2]
[347531971,1735905052237,-1710.1,9.26e-05,2]
[347531972,1735905052247,-500.0,9.26e-05,2]
[347531973,1735905052257,-789.29,9.26e-05,2]
[347531974,1735905052266,-500.0,9.26e-05,2]
[347531975,1735905052276,-500.0,9.26e-05,2]
[347531976,1735905052286,-1577.96,9.26e-05,2]
[347531977,1735905052296,-500.0,9.26e-05,2]
[347531978,1735905052305,-792.2,9.26e-05,2]
[347531979,1735905052315,-1054.64,9.26e-05,2]
[347531980,1735905052324,-500.0,9.26e-05,2]
[347531981,1735905052334,-500.0,9.26e-05,2]
[347531982,1735905052344,-500.0,9.26e-05,2]
[347531983,1735905052353,-1497.47,9.26e-05,2]
[347531984,1735905052363,-500.0,9.26e-05,2]
[347531985,1735905052373,-500.0,9.26e-05,2]
[347531986,1735905052383,-829.38,9.26e-05,2]
[347531987,1735905052394,-500.0,9.26e-05,2]
[347531988,1735905052404,-500.0,9.26e-05,2]
[347531989,1735905052414,-500.0,9.26e-05,2]
[347531990,1735905052424,-500.0,9.26e-05,2]
[347531991,1735905052435,-987.75,9.26e-05,2]
[347531992,1735905052445,-529.57,9.26e-05,2]
[347531993,1735905052456,-500.0,9.26e-05,2]
[347531994,1735905052466,-500.0,9.26e-05,2]
[347531995,1735905052476,-500.0,9.26e-05,2]
[347531996,1735905052765,-1111.14,9.26e-05,2]
[347531997,1735905052787,-500.0,9.26e-05,2]
[347531998,1735905052797,-833.34,9.26e-05,2]
[347531999,1735905052807,-1274.61,9.26e-05,2]
[347532000,1735905052818,-766.68,9.26e-05,2]
[347532001,1735905052828,-1142.18,9.26e-05,2]
[347532002,1735905052838,-500.0,9.26e-05,2]
[347532003,1735905052848,-681.35,9.26e-05,2]
[347532004,1735905052858,-500.0,9.26e-05,2]
[347532005,1735905052868,-1062.57,9.26e-05,2]
[347532006,1735905052878,-500.0,9.26e-05,2]
[347532007,1735905052888,-3523.17,9.26e-05,2]
[347532008,1735905052898,-500.0,9.26e-05,2]
[347532009,1735905052907,-500.0,9.26e-05,2]
[347532010,1735905052916,-831.69,9.26e-05,2]
[347532011,1735905052926,-1740.72,9.26e-05,2]
[347532012,1735905052935,-990.89,9.26e-05,2]
[347532013,1735905052945,-716.2,9.26e-05,2]
[347532014,1735905052955,-500.0,9.26e-05,2]
[347532015,1735905052964,-500.0,9.26e-05,2]
[347532016,1735905052974,-547.46,9.26e-05,2]
[347532017,1735905052984,-519.04,9.26e-05,2]
[347532018,1735905052994,-500.0,9.26e-05,2]
[347532019,1735905053004,-1262.65,9.26e-05,2]
[347532020,1735905053013,-1231.96,9.26e-05,2]
[347532021,1735905053023,-587.5,9.26e-05,2]
[347532022,1735905053032,-1734.76,9.26e-05,2]
[347532023,1735905053041,-500.0,9.26e-05,2]
[347532024,1735905053051,-2349.32,9.26e-05,2]
[347532025,1735905053060,-941.43,9.26e-05,2]
[347532026,1735905053070,-585.5,9.26e-05,2]
[347532027,1735905053080,-552.81,9.26e-05,2]
[347532028,1735905053090,-500.0,9.26e-05,2]
[347532029,1735905053099,-860.17,9.26e-05,2]
[347532030,1735905053108,-500.0,9.26e-05,2]
[347532031,1735905053118,-500.0,9.26e-05,2]
[347532032,1735905053127,-500.0,9.26e-05,2]
[347532033,1735905053137,-500.0,9.26e-05,2]
[347532034,1735905053147,-1107.49,9.26e-05,2]
[347532035,1735905053156,-693.65,9.26e-05,2]
[347532036,1735905053166,-500.0,9.26e-05,2]
[347532037,1735905053176,-619.56,9.26e-05,2]
[347532038,1735905053186,-913.88,9.26e-05,2]
[347532039,1735905053196,-500.0,9.26e-05,2]
[347532040,1735905053206,-2450.4,9.26e-05,2]
[347532041,1735905053216,-1659.07,9.26e-05,2]
[347532042,1735905053225,-500.0,9.26e-05,2]
[347532043,1735905053235,-500.0,9.26e-05,2]
[347532044,1735905053246,-1018.08,9.26e-05,2]
[347532045,1735905053257,-1004.12,9.26e-05,2]
[347532046,1735905053270,-638.18,9.26e-05,2]
[347532047,1735905053279,-500.0,9.26e-05,2]
[347532048,1735905053289,-552.62,9.26e-05,2]
[347532049,1735905053299,-569.9,9.26e-05,2]
[347532050,1735905053310,-500.0,9.26e-05,2]
[347532051,1735905053320,-500.0,9.26e-05,2]
[347532052,1735905053330,-928.8,9.26e-05,2]
[347532053,1735905053340,-500.0,9.26e-05,2]
[347532054,1735905053351,-500.0,9.26e-05,2]
[347532055,1735905053360,-500.0,9.26e-05,2]
[347532056,1735905053371,-500.0,9.26e-05,2]
[347532057,1735905053380,-1224.6,9.26e-05,2]
[347532058,1735905053390,-2134.23,9.26e-05,2]
[347532059,1735905053400,-500.0,9.26e-05,2]
[347532060,1735905053410,-956.63,9.26e-05,2]
[347532061,1735905053419,-500.0,9.26e-05,2]
[347532062,1735905053429,-974.42,9.26e-05,2]
[347532063,1735905053438,-500.0,9.26e-05,2]
[347532064,1735905053447,-1772.47,9.26e-05,2]
[347532065,1735905053456,-621.71,9.26e-05,2]
[347532066,1735905053465,-500.0,9.26e-05,2]
[347532067,1735905053475,-683.75,9.26e-05,2]
[347532068,1735905053485,-638.46,9.26e-05,2]
[347532069,1735905053496,-500.0,9.26e-05,2]
[347532070,1735905053506,-1085.2,9.26e-05,2]
[347532071,1735905053516,-1719.1,9.26e-05,2]
[347532072,1735905053525,-1059.67,9.26e-05,2]
[347532073,1735905053535,-983.59,9.26e-05,2]
[347532074,1735905053545,-500.0,9.26e-05,2]
[347532075,1735905053555,-500.0,9.26e-05,2]
[347532076,1735905053565,-500.0,9.26e-05,2]
[347532077,1735905053575,-1242.31,9.26e-05,2]
[347532078,1735905053585,-578.44,9.26e-05,2]
[347532079,1735905053595,-1069.9,9.26e-05,2]
[347532080,1735905053605,-2360.45,9.26e-05,2]
[347532081,1735905053615,-500.0,9.26e-05,2]
[347532082,1735905053624,-1524.62,9.26e-05,2]
[347532083,1735905053634,-809.15,9.26e-05,2]
[347532084,1735905053643,-541.29,9.26e-05,2]
[347532085,1735905053653,-1192.98,9.26e-05,2]
[347532086,1735905053662,-500.0,9.26e-05,2]
[347532087,1735905053671,-500.0,9.26e-05,2]
[347532088,1735905053681,-500.0,9.26e-05,2]
[347532089,1735905053690,-500.0,9.26e-05,2]
[347532090,1735905053699,-669.28,9.26e-05,2]
[347532091,1735905053709,-1030.19,9.26e-05,2]
[347532092,1735905053718,-548.02,9.26e-05,2]
[347532093,1735905053728,-500.0,9.26e-05,2]
[347532094,1735905053738,-500.0,9.26e-05,2]
[347532095,1735905053747,-500.0,9.26e-05,2]
[347532096,1735905053757,-961.41,9.26e-05,2]
[347532097,1735905053766,-809.16,9.26e-05,2]
[347532098,1735905053775,-1136.56,9.26e-05,2]
[347532099,1735905053785,-500.0,9.26e-05,2]
[347532100,1735905053795,-500.0,9.26e-05,2]
[347532101,1735905053806,-500.0,9.26e-05,2]
[347532102,1735905053815,-898.07,9.26e-05,2]
[347532103,1735905053825,-606.66,9.26e-05,2]
[347532104,1735905053835,-500.0,9.26e-05,2]
[347532105,1735905053845,-500.0,9.26e-05,2]
[347532106,1735905053855,-1141.11,9.26e-05,2]
[347532107,1735905053865,-794.22,9.26e-05,2]
[347532108,1735905053875,-511.36,9.26e-05,2]
[347532109,1735905053885,-743.25,9.26e-05,2]
[347532110,1735905053895,-546.9,9.26e-05,2]
[347532111,1735905053905,-536.15,9.26e-05,2]
[347532112,1735905053915,-3174.83,9.26e-05,2]
[347532113,1735905053924,-500.0,9.26e-05,2]
[347532114,1735905053933,-500.0,9.26e-05,2]
[347532115,1735905053943,-500.0,9.26e-05,2]
[347532116,1735905053952,-1136.09,9.26e-05,2]
[347532117,1735905053962,-1014.14,9.26e-05,2]
[347532118,1735905053972,-500.0,9.26e-05,2]
[347532119,1735905053982,-1535.48,9.26e-05,2]
[347532120,1735905053993,-500.0,9.26e-05,2]
[347532121,1735905054002,-1600.87,9.26e-05,2]
[347532122,1735905054012,-500.0,9.26e-05,2]
[347532123,1735905054021,-2296.25,9.26e-05,2]
[347532124,1735905054031,-1633.82,9.26e-05,2]
[347532125,1735905054041,-500.0,9.26e-05,2]
[347532126,1735905054050,-500.0,9.26e-05,2]
[347532127,1735905054060,-1890.84,9.26e-05,2]
[347532128,1735905054070,-500.0,9.26e-05,2]
[347532129,1735905054079,-500.0,9.26e-05,2]
[347532130,1735905054089,-790.71,9.26e-05,2]
[347532131,1735905054099,-3401.53,9.26e-05,2]
[347532132,1735905054108,-500.0,9.26e-05,2]
[347532133,1735905054119,-574.6,9.26e-05,2]
[347532134,1735905054129,-500.0,9.26e-05,2]
[347532135,1735905054139,-2724.04,9.26e-05,2]
[347532136,1735905054149,-1377.08,9.26e-05,2]
[347532137,1735905054158,-1201.48,9.26e-05,2]
[347532138,1735905054168,-687.51,9.26e-05,2]
[347532139,1735905054177,-1530.27,9.26e-05,2]
[347532140,1735905054187,-500.0,9.26e-05,2]
[347532141,1735905054196,-815.31,9.26e-05,2]
[347532142,1735905054206,-552.24,9.26e-05,2]
[347532143,1735905054215,-1062.24,9.26e-05,2]
[347532144,1735905054225,-2705.9,9.26e-05,2]
[347532145,1735905054234,-1089.02,9.26e-05,2]
[347532146,1735905054245,-500.0,9.26e-05,2]
[347532147,1735905054255,-900.41,9.26e-05,2]
[347532148,1735905054264,-500.0,9.26e-05,2]
[347532149,1735905054274,-500.0,9.26e-05,2]
[347532150,1735905054283,-512.87,9.26e-05,2]
[347532151,1735905054293,-500.0,9.26e-05,2]
[347532152,1735905054302,-809.39,9.26e-05,2]
[347532153,1735905054312,-500.0,9.26e-05,2]
[347532154,1735905054321,-500.0,9.26e-05,2]
[347532155,1735905054331,-500.0,9.26e-05,2]
[347532156,1735905054341,-500.0,9.26e-05,2]
[347532157,1735905054351,-500.0,9.26e-05,2]
[347532158,1735905054360,-1697.57,9.26e-05,2]
[347532159,1735905054370,-1406.86,9.26e-05,2]
[347532160,1735905054379,-500.0,9.26e-05,2]
[347532161,1735905054389,-1445.48,9.26e-05,2]
[347532162,1735905054398,-818.71,9.26e-05,2]
[347532163,1735905054408,-500.0,9.26e-05,2]
[347532164,1735905054418,-1607.88,9.26e-05,2]
[347532165,1735905054428,-746.95,9.26e-05,2]
[347532166,1735905054437,-500.0,9.26e-05,2]
[347532167,1735905054447,-848.07,9.26e-05,2]
[347532168,1735905054456,-500.0,9.26e-05,2]
[347532169,1735905054466,-2199.69,9.26e-05,2]
[347532170,1735905054476,-944.93,9.26e-05,2]
[347532171,1735905054486,-3264.07,9.26e-05,2]
[347532172,1735905054498,-1278.63,9.26e-05,2]
[347532173,1735905054508,-500.0,9.26e-05,2]
[347532174,1735905054518,-1536.3,9.26e-05,2]
[347532175,1735905054528,-500.0,9.26e-05,2]
[347532176,1735905054538,-1468.96,9.26e-05,2]
[347532177,1735905054548,-500.0,9.26e-05,2]
[347532178,1735905054557,-302.5504773,9.26e-05,2]
[347532179,1735905054567,-500.0,9.26e-05,2]
[347532180,1735905054577,-412.5034086,9.26e-05,2]
[347532181,1735905054586,-500.0,9.26e-05,2]
[347532182,1735905054596,-500.0,9.26e-05,2]
[347532183,1735905054606,-670.94,9.26e-05,2]
[347532184,1735905054615,-2530.56,9.26e-05,2]
[347532185,1735905054625,-858.59,9.26e-05,2]
[347532186,1735905054634,-500.0,9.26e-05,2]
[347532187,1735905054645,-1698.46,9.26e-05,2]
[347532188,1735905054655,-1194.68,9.26e-05,2]
[347532189,1735905054665,-500.0,9.26e-05,2]
[347532190,1735905054675,-500.0,9.26e-05,2]
[347532191,1735905054685,-500.0,9.26e-05,2]
[347532192,1735905054694,-500.0,9.26e-05,2]
[347532193,1735905054704,-500.0,9.26e-05,2]
[347532194,1735905054713,-560.77,9.26e-05,2]
[347532195,1735905054723,-652.66,9.26e-05,2]
[347532196,1735905054733,-502.24,9.26e-05,2]
[347532197,1735905054743,-4617.13,9.26e-05,2]
[347532198,1735905054753,-617.28,9.26e-05,2]
[347532199,1735905054762,-1145.7,9.26e-05,2]
[347532200,1735905054771,-598.97,9.26e-05,2]
[347532201,1735905054781,-500.0,9.26e-05,2]
[347532202,1735905054791,-812.62,9.26e-05,2]
[347532203,1735905054801,-3544.79,9.26e-05,2]
[347532204,1735905054812,-500.0,9.26e-05,2]
[347532205,1735905054821,-870.08,9.26e-05,2]
[347532206,1735905054831,-500.0,9.26e-05,2]
[347532207,1735905054840,-500.0,9.26e-05,2]
[347532208,1735905054849,-500.0,9.26e-05,2]
[347532209,1735905054859,-500.0,9.26e-05,2]
[347532210,1735905054868,-500.0,9.26e-05,2]
[347532211,1735905054878,-500.0,9.26e-05,2]
[347532212,1735905054887,-500.0,9.26e-05,2]
[347532213,1735905054896,-1204.78,9.26e-05,2]
[347532214,1735905054906,-5179.38,9.26e-05,2]
[347532215,1735905054915,-6451.39,9.26e-05,2]
[347532216,1735905054925,-638.32,9.26e-05,2]
[347532217,1735905054934,-659.1,9.26e-05,2]
[347532218,1735905054944,-500.0,9.26e-05,2]
[347532219,1735905054953,-500.0,9.261e-05,2]
[347532220,1735905054962,-500.0,9.261e-05,2]
[347532221,1735905054971,-500.0,9.261e-05,2]
[347532222,1735905054983,-500.0,9.261e-05,2]
[347532223,1735905054994,-500.0,9.261e-05,2]
[347532224,1735905055003,-548.18,9.261e-05,2]
[347532225,1735905055013,-166.31,9.261e-05,2]
[347532226,1735905055022,-500.0,9.261e-05,2]
[347532227,1735905055032,-500.0,9.261e-05,2]
[347532228,1735905055041,-500.0,9.261e-05,2]
[347532229,1735905055050,-500.0,9.261e-05,2]
[347532230,1735905055059,-667.35,9.261e-05,2]
[347532231,1735905055068,-500.0,9.261e-05,2]
[347532232,1735905055078,-659.32,9.261e-05,2]
[347532233,1735905055089,-353.47,9.261e-05,2]
[347532234,1735905055098,-500.0,9.261e-05,2]
[347532235,1735905055108,-745.52,9.261e-05,2]
[347532236,1735905055117,-500.0,9.261e-05,2]
[347532237,1735905055127,-662.37,9.261e-05,2]
[347532238,1735905055136,-500.0,9.261e-05,2]
[347532239,1735905055145,-500.0,9.261e-05,2]
[347532240,1735905055155,-500.0,9.261e-05,2]
[347532241,1735905055164,-599.99,9.261e-05,2]
[347532242,1735905055173,-439.50949463,9.261e-05,2]
[347532243,1735905055958,-68.63050537,9.261e-05,2]
[347532244,1735905055970,-657.61,9.261e-05,2]
[347532245,1735905055981,-500.0,9.261e-05,2]
[347532246,1735905055995,-500.0,9.261e-05,2]
[347532247,1735905056006,-500.0,9.261e-05,2]
[347532248,1735905056017,-500.0,9.261e-05,2]
[347532249,1735905056029,-538.52,9.261e-05,2]
[347532250,1735905056040,-727.58,9.261e-05,2]
[347532251,1735905056052,-544.53,9.261e-05,2]
[347532252,1735905056063,-932.72,9.261e-05,2]
[347532253,1735905056075,-626.35,9.261e-05,2]
[347532254,1735905056087,-500.0,9.261e-05,2]
[347532255,1735905056099,-500.0,9.261e-05,2]
[347532256,1735905056111,-625.8,9.261e-05,2]
[347532257,1735905056123,-500.0,9.261e-05,2]
[347532258,1735905056134,-6387.27,9.261e-05,2]
[347532259,1735905056147,-241.61,9.261e-05,2]
[347532260,1735905056159,-724.34,9.261e-05,2]
[347532261,1735905056171,-500.0,9.261e-05,2]
[347532262,1735905056183,-202.41,9.261e-05,2]
[347532263,1735905056195,-2441.57,9.261e-05,2]
[347532264,1735905056206,-656.31,9.261e-05,2]
[347532265,1735905056218,-500.0,9.261e-05,2]
[347532266,1735905056230,-603.3,9.261e-05,2]
[347532267,1735905056241,-612.51,9.261e-05,2]
[347532268,1735905056253,-1072.45,9.261e-05,2]
[347532269,1735905056264,-2625.92,9.261e-05,2]
[347532270,1735905056277,-500.0,9.261e-05,2]
[347532271,1735905056288,-500.0,9.261e-05,2]
[347532272,1735905056300,-500.0,9.261e-05,2]
[347532273,1735905056311,-644.5,9.261e-05,2]
[347532274,1735905056323,-2853.83,9.261e-05,2]
[347532275,1735905056335,-500.0,9.261e-05,2]
[347532276,1735905056346,-500.0,9.261e-05,2]
[347532277,1735905056357,-500.0,9.261e-05,2]
[347532278,1735905056368,-724.26,9.261e-05,2]
[347532279,1735905056380,-500.0,9.261e-05,2]
[347532280,1735905056392,-612.23,9.261e-05,2]
[347532281,1735905056403,-963.12,9.261e-05,2]
[347532282,1735905056416,-1236.86,9.261e-05,2]
[347532283,1735905056428,-500.0,9.261e-05,2]
[347532284,1735905056440,-500.0,9.261e-05,2]
[347532285,1735905056452,-638.29,9.261e-05,2]
[347532286,1735905056464,-500.0,9.261e-05,2]
[347532287,1735905056475,-500.0,9.261e-05,2]
[347532288,1735905056486,-3108.79,9.261e-05,2]
[347532289,1735905056499,-500.0,9.261e-05,2]
[347532290,1735905056511,-1457.26,9.261e-05,2]
[347532291,1735905056523,-4232.15,9.261e-05,2]
[347532292,1735905056535,-500.0,9.261e-05,2]
[347532293,1735905056548,-500.0,9.261e-05,2]
[347532294,1735905056561,-500.0,9.261e-05,2]
[347532295,1735905056572,-500.0,9.261e-05,2]
[347532296,1735905056585,-2176.07,9.261e-05,2]
[347532297,1735905056596,-1547.35,9.261e-05,2]
[347532298,1735905056607,-511.57,9.261e-05,2]
[347532299,1735905056618,-2000.52,9.261e-05,2]
[347532300,1735905056630,-4008.68,9.261e-05,2]
[347532301,1735905056642,-2183.1,9.261e-05,2]
[347532302,1735905056653,-8157.96,9.261e-05,2]
[347532303,1735905056664,-5100.27,9.261e-05,2]
[347532304,1735905056675,-6239.58,9.261e-05,2]
[347532305,1735905056687,-7669.36,9.261e-05,2]
[347532306,1735905056700,-500.0,9.261e-05,2]
[347532307,1735905056712,-2697.6,9.261e-05,2]
[347532308,1735905056724,-5087.72,9.261e-05,2]
[347532309,1735905056736,-2588.56,9.261e-05,2]
[347532310,1735905056747,-914.32,9.261e-05,2]
[347532311,1735905056758,-963.91,9.261e-05,2]
[347532312,1735905056770,-1466.89,9.261e-05,2]
[347532313,1735905056782,-1249.2,9.261e-05,2]
[347532314,1735905056793,-2475.57,9.261e-05,2]
[347532315,1735905056805,-397.17621707,9.261e-05,2]
[347532316,1735905056816,-7308.25,9.261e-05,2]
[347532317,1735905056828,-5613.04,9.261e-05,2]
[347532318,1735905056839,-3686.11,9.261e-05,2]
[347532319,1735905056851,-2187.21,9.261e-05,2]
[347532320,1735905056861,-491.63,9.261e-05,2]
[347532321,1735905056872,-150.0,9.301e-05,2]
[347532322,1735905056883,-150.0,9.301e-05,2]
[347532323,1735905056894,-150.0,9.301e-05,2]
[347532324,1735905056905,-150.0,9.384e-05,2]
[347532325,1735905056916,-150.0,9.468e-05,2]
[347532326,1735905056927,-500.0,9.48e-05,2]
[347532327,1735905056937,-1572.18,9.532e-05,2]
[347532328,1735905056949,-1238.78,9.532e-05,2]
[347532329,1735905056960,-1045.22,9.532e-05,2]
[347532330,1735905056971,-2902.69,9.532e-05,2]
[347532331,1735905056982,-500.0,9.532e-05,2]
[347532332,1735905056994,-2241.16,9.532e-05,2]
[347532333,1735905057004,-1257.51,9.532e-05,2]
[347532334,1735905057015,-2799.09,9.532e-05,2]
[347532335,1735905057026,-5716.7,9.532e-05,2]
[347532336,1735905057037,-3371.76,9.532e-05,2]
[347532337,1735905057048,-2026.89,9.532e-05,2]
[347532338,1735905057059,-6886.97,9.532e-05,2]
[347532339,1735905057070,-2462.966259,9.532e-05,2]
[347532340,1735905057081,-3347.82,9.532e-05,2]
[347532341,1735905057091,-2504.290482,9.532e-05,2]
[347532342,1735905057103,-1591.88,9.532e-05,2]
[347532343,1735905057114,-2556.56,9.532e-05,2]
[347532344,1735905057124,-841.72,9.532e-05,2]
[347532345,1735905057135,-6521.31,9.532e-05,2]
[347532346,1735905057145,-2473.72,9.532e-05,2]
[347532347,1735905057156,-3947.86,9.532e-05,2]
[347532348,1735905057167,-1141.7,9.532e-05,2]
[347532349,1735905057177,-500.0,9.532e-05,2]
[347532350,1735905057187,-500.0,9.532e-05,2]
[347532351,1735905057198,-2767.2,9.532e-05,2]
[347532352,1735905057209,-2921.51,9.532e-05,2]
[347532353,1735905057219,-4005.05,9.532e-05,2]
[347532354,1735905057229,-2328.37,9.532e-05,2]
[347532355,1735905057239,-5514.99,9.532e-05,2]
[347532356,1735905057251,-759.07,9.532e-05,2]
[347532357,1735905057264,-3732.91,9.532e-05,2]
[347532358,1735905057274,-3765.97,9.532e-05,2]
[347532359,1735905057285,-6072.5,9.532e-05,2]
[347532360,1735905057295,-10453.95,9.532e-05,2]
[347532361,1735905057306,-2970.38,9.532e-05,2]
[347532362,1735905057317,-886.53,9.532e-05,2]
[347532363,1735905057327,-8562.83,9.532e-05,2]
[347532364,1735905057338,-3453.22,9.532e-05,2]
[347532365,1735905057348,-523.93,9.532e-05,2]
[347532366,1735905057359,-1498.51,9.532e-05,2]
[347532367,1735905057370,-901.5,9.532e-05,2]
[347532368,1735905057380,-500.0,9.532e-05,2]
[347532369,1735905057391,-565.2,9.532e-05,2]
[347532370,1735905057400,-500.0,9.532e-05,2]
[347532371,1735905057409,-500.0,9.533e-05,2]
[347532372,1735905057419,-615.15,9.533e-05,2]
[347532373,1735905057428,-500.0,9.533e-05,2]
[347532374,1735905057437,-500.0,9.533e-05,2]
[347532375,1735905057446,-500.0,9.533e-05,2]
[347532376,1735905057455,-827.89,9.533e-05,2]
[347532377,1735905057464,-580.61,9.533e-05,2]
[347532378,1735905057474,-512.24,9.533e-05,2]
[347532379,1735905057483,-500.0,9.533e-05,2]
[347532380,1735905057492,-673.25,9.533e-05,2]
[347532381,1735905057501,-500.0,9.533e-05,2]
[347532382,1735905057510,-500.0,9.533e-05,2]
[347532383,1735905057522,-500.0,9.533e-05,2]
[347532384,1735905057531,-778.45,9.533e-05,2]
[347532385,1735905057541,-500.0,9.533e-05,2]
[347532386,1735905057550,-586.2,9.533e-05,2]
[347532387,1735905057560,-1181.02,9.533e-05,2]
[347532388,1735905057570,-500.0,9.533e-05,2]
[347532389,1735905057579,-500.0,9.533e-05,2]
[347532390,1735905057589,-1092.98,9.533e-05,2]
[347532391,1735905057598,-500.0,9.533e-05,2]
[347532392,1735905057608,-500.0,9.533e-05,2]
[347532393,1735905057618,-500.0,9.533e-05,2]
[347532394,1735905057627,-500.0,9.533e-05,2]
[347532395,1735905057638,-705.4,9.533e-05,2]
[347532396,1735905057647,-1451.9,9.533e-05,2]
[347532397,1735905057657,-1058.02,9.533e-05,2]
[347532398,1735905057667,-1119.68,9.533e-05,2]
[347532399,1735905057676,-1408.28,9.533e-05,2]
[347532400,1735905057686,-1153.1,9.533e-05,2]
[347532401,1735905057695,-941.5,9.533e-05,2]
[347532402,1735905057705,-889.02,9.533e-05,2]
[347532403,1735905058228,-171.34,9.533e-05,2]
[347532404,1735905058244,-1037.1,9.533e-05,2]
[347532405,1735905058255,-697.9,9.533e-05,2]
[347532406,1735905058264,-192.62,9.533e-05,2]
[347532407,1735905058273,-500.0,9.533e-05,2]
[347532408,1735905058282,-500.0,9.533e-05,2]
[347532409,1735905058291,-500.0,9.533e-05,2]
[347532410,1735905058300,-722.95,9.533e-05,2]
[347532411,1735905058309,-595.42,9.533e-05,2]
[347532412,1735905058318,-717.92,9.533e-05,2]
[347532413,1735905058327,-500.0,9.533e-05,2]
[347532414,1735905058336,-500.0,9.533e-05,2]
[347532415,1735905058345,-500.0,9.533e-05,2]
[347532416,1735905058355,-1228.8,9.533e-05,2]
[347532417,1735905058364,-402.01293938,9.533e-05,2]
[347532418,1735905058373,-500.0,9.533e-05,2]
[347532419,1735905058383,-278.26,9.533e-05,2]
[347532420,1735905058392,-1034.58,9.533e-05,2]
[347532421,1735905058401,-500.0,9.533e-05,2]
[347532422,1735905058410,-528.65,9.533e-05,2]
[347532423,1735905058419,-500.62,9.533e-05,2]
[347532424,1735905058428,-500.0,9.533e-05,2]
[347532425,1735905058437,-842.73,9.533e-05,2]
[347532426,1735905058446,-520.8,9.533e-05,2]
[347532427,1735905058455,-1367.71,9.533e-05,2]
[347532428,1735905058464,-1049.73,9.533e-05,2]
[347532429,1735905058474,-500.0,9.533e-05,2]
[347532430,1735905058486,-500.0,9.533e-05,2]
[347532431,1735905058495,-1255.86,9.533e-05,2]
[347532432,1735905058503,-500.0,9.533e-05,2]
[347532433,1735905058514,-500.0,9.533e-05,2]
[347532434,1735905058523,-507.86,9.533e-05,2]
[347532435,1735905058532,-500.0,9.533e-05,2]
[347532436,1735905058541,-500.0,9.533e-05,2]
[347532437,1735905058550,-500.0,9.533e-05,2]
[347532438,1735905058560,-500.0,9.533e-05,2]
[347532439,1735905058569,-509.92,9.533e-05,2]
[347532440,1735905058578,-500.0,9.533e-05,2]
[347532441,1735905058588,-558.07,9.533e-05,2]
[347532442,1735905058598,-500.0,9.533e-05,2]
[347532443,1735905058607,-500.0,9.533e-05,2]
[347532444,1735905058616,-500.0,9.533e-05,2]
[347532445,1735905058625,-500.0,9.533e-05,2]
[347532446,1735905058634,-500.0,9.533e-05,2]
[347532447,1735905058643,-500.0,9.533e-05,2]
[347532448,1735905058652,-500.0,9.533e-05,2]